[Event "EIRCC 2019"]
[Site "Tallinn"]
[Date "2019.12.06"]
[Round "12.22"]
[White "Pershin, Denis"]
[Black "Blohberger, Felix"]
[Result "0-1"]
[ECO "A85"]
[WhiteElo "2509"]
[BlackElo "2316"]
[Annotator "ChessBase"]
[PlyCount "154"]
[EventDate "2019.12.05"]
[EventType "swiss"]
[EventCountry "EST"]
[SourceTitle "playchess.com"]
[Source "ChessBase"]
[SourceQuality "1"]
[TimeControl "900+10"]

1. d4 {[%emt 0:02:06]} f5 {[%emt 0:00:00]} 2. c4 {[%emt 0:00:11]} Nf6 {[%emt 0:00:00]} 3. Nc3 {[%emt 0:00:04]} e6 {[%emt 0:00:00]} 4. g3 {[%emt 0:00:02]} Bb4 {[%emt 0:00:00]} 5. Bd2 {[%emt 0:00:07]} O-O {[%emt 0:00:08]} 6. Bg2 {[%emt 0:00:02]} d6 {[%emt 0:00:02]} 7. a3 {[%emt 0:00:25]} Bxc3 {[%emt 0:00:01]} 8. Bxc3 {[%emt 0:00:01]} Ne4 {[%emt 0:00:06]} 9. Qc2 {[%emt 0:00:02]} Nxc3 {[%emt 0:00:02]} 10. Qxc3 {[%emt 0:00:01]} Qe7 {[%emt 0:00:01]} 11. Nf3 {[%emt 0:00:30]} Nc6 {[%emt 0:00:03]} 12. O-O {[%emt 0:00:50]} e5 {[%emt 0:00:02]} 13. d5 {[%emt 0:00:02]} Nb8 {[%emt 0:00:08]} 14. c5 {[%emt 0:00:09]} f4 {[%emt 0:00:25]} 15. cxd6 {[%emt 0:00:09]} cxd6 {[%emt 0:00:01]} 16. Rac1 {[%emt 0:02:08]} Bg4 {[%emt 0:00:06]} 17. Qc7 {[%emt 0:00:04]} Nd7 {[%emt 0:00:02]} 18. Nd2 {[%emt 0:00:05]} fxg3 {[%emt 0:01:26]} 19. hxg3 {[%emt 0:00:25]} Bxe2 {[%emt 0:01:05]} 20. Rfe1 {[%emt 0:00:00]} Bd3 {[%emt 0:00:08]} 21. Bh3 {[%emt 0:02:23]} Qf6 {[%emt 0:00:06]} 22. f3 {[%emt 0:01:29]} Nb6 {[%emt 0:01:14]} 23. Be6+ {[%emt 0:01:09]} Kh8 {[%emt 0:00:01]} 24. Re3 {[%emt 0:00:37]} e4 {[%emt 0:01:19]} 25. f4 {[%emt 0:02:48]} Qd4 {[%emt 0:01:30]} 26. Kf2 {[%emt 0:00:01]} Nxd5 {[%emt 0:00:04]} 27. Bxd5 {[%emt 0:00:07]} Qxd5 {[%emt 0:00:01]} 28. Qc3 {[%emt 0:00:51]} Rae8 {[%emt 0:01:32]} 29. Nb3 {[%emt 0:00:23]} Qh5 {[%emt 0:00:06]} 30. Kg2 {[%emt 0:00:05]} Be2 {[%emt 0:00:13]} 31. Nd4 {[%emt 0:00:03]} Bf3+ {[%emt 0:00:01]} 32. Nxf3 {[%emt 0:00:16]} exf3+ {[%emt 0:00:02]} 33. Rxf3 {[%emt 0:00:08]} Re2+ {[%emt 0:00:08]} 34. Rf2 {[%emt 0:00:01]} Rfe8 {[%emt 0:00:16]} 35. Rcf1 {[%emt 0:00:10]} h6 {[%emt 0:01:02]} 36. Qd4 {[%emt 0:00:04]} Rxf2+ {[%emt 0:00:14]} 37. Rxf2 {[%emt 0:00:07]} Re1 {[%emt 0:00:02]} 38. Rf1 {[%emt 0:00:12]} Qe2+ {[%emt 0:00:02]} 39. Rf2 {[%emt 0:00:01]} Qh5 {[%emt 0:01:19]} 40. Rf1 {[%emt 0:00:02]} Rxf1 {[%emt 0:00:10]} 41. Kxf1 {[%emt 0:00:01]} Qf3+ {[%emt 0:00:09]} 42. Ke1 {[%emt 0:00:27]} Qxg3+ {[%emt 0:00:02]} 43. Ke2 {[%emt 0:00:00]} Qg2+ {[%emt 0:00:17]} 44. Kd3 {[%emt 0:00:19]} a6 {[%emt 0:00:31]} 45. Qxd6 {[%emt 0:00:14]} Qxb2 {[%emt 0:00:23]} 46. Qf8+ {[%emt 0:00:30]} Kh7 {[%emt 0:00:01]} 47. Qf5+ {[%emt 0:00:22]} g6 {[%emt 0:00:01]} 48. Qd7+ {[%emt 0:00:21]} Qg7 {[%emt 0:00:02]} 49. Qe6 {[%emt 0:00:01]} h5 {[%emt 0:00:13]} 50. Ke2 {[%emt 0:00:51]} Qb2+ {[%emt 0:00:13]} 51. Kd1 {[%emt 0:01:39]} Qd4+ {[%emt 0:01:15]} 52. Kc2 {[%emt 0:00:11]} Qxf4 {[%emt 0:00:08]} 53. Qe7+ {[%emt 0:00:01]} Kh6 {[%emt 0:00:01]} 54. Qxb7 {[%emt 0:00:01]} Qa4+ {[%emt 0:00:01]} 55. Kd2 {[%emt 0:00:14]} Qxa3 {[%emt 0:00:05]} 56. Qf7 {[%emt 0:00:03]} Qa5+ {[%emt 0:00:12]} 57. Kd1 {[%emt 0:00:07]} Qf5 {[%emt 0:00:05]} 58. Qg8 {[%emt 0:00:07]} Qf6 {[%emt 0:00:07]} 59. Ke2 {[%emt 0:00:14]} a5 {[%emt 0:00:07]} 60. Qa8 {[%emt 0:00:07]} Qf5 {[%emt 0:00:59]} 61. Qh8+ {[%emt 0:00:07]} Kg5 {[%emt 0:00:01]} 62. Qd8+ {[%emt 0:00:02]} Kg4 {[%emt 0:00:03]} 63. Qd4+ {[%emt 0:00:04]} Qf4 {[%emt 0:00:04]} 64. Qd7+ {[%emt 0:00:25]} Kh4 {[%emt 0:00:28]} 65. Qd8+ {[%emt 0:00:25]} Qg5 {[%emt 0:00:05]} 66. Qc7 {[%emt 0:00:02]} Qg4+ {[%emt 0:00:10]} 67. Kf2 {[%emt 0:00:05]} Qf5+ {[%emt 0:00:35]} 68. Kg2 {[%emt 0:00:01]} Qg5+ {[%emt 0:00:27]} 69. Kf3 {[%emt 0:00:18]} Kh3 {[%emt 0:00:19]} 70. Qg7 {[%emt 0:00:42]} h4 {[%emt 0:00:08]} 71. Qg8 {[%emt 0:00:14]} a4 {[%emt 0:00:11]} 72. Kf2 {[%emt 0:00:13]} Qf5+ {[%emt 0:00:11]} 73. Kg1 {[%emt 0:00:03]} Kg3 {[%emt 0:00:23]} 74. Qb8+ {[%emt 0:00:17]} Qf4 {[%emt 0:00:02]} 75. Qb2 {[%emt 0:00:03]} Qe3+ {[%emt 0:00:17]} 76. Kf1 {[%emt 0:00:05]} Qf3+ {[%emt 0:00:13]} 77. Ke1 {[%emt 0:00:01]} Qh1+ {[%emt 0:00:01]} 0-1

[Event "EIRCC 2019"]
[Site "Tallinn"]
[Date "2019.12.06"]
[Round "12.23"]
[White "Chukavin, Kirill"]
[Black "Sebenik, Matej"]
[Result "0-1"]
[ECO "C07"]
[WhiteElo "2290"]
[BlackElo "2504"]
[Annotator "ChessBase"]
[PlyCount "92"]
[EventDate "2019.12.05"]
[EventType "swiss"]
[EventCountry "EST"]
[SourceTitle "playchess.com"]
[Source "ChessBase"]
[SourceQuality "1"]
[TimeControl "900+10"]

1. e4 {[%emt 0:00:00]} e6 {[%emt 0:00:00]} 2. d4 {[%emt 0:00:00]} d5 {[%emt 0:00:00]} 3. Nd2 {[%emt 0:00:00]} c5 {[%emt 0:00:00]} 4. exd5 {[%emt 0:00:00]} Qxd5 {[%emt 0:00:02]} 5. Ngf3 {[%emt 0:00:00]} cxd4 {[%emt 0:00:04]} 6. Bc4 {[%emt 0:00:00]} Qd6 {[%emt 0:00:09]} 7. O-O {[%emt 0:00:05]} Nf6 {[%emt 0:00:01]} 8. Nb3 {[%emt 0:00:01]} Nc6 {[%emt 0:00:03]} 9. Nbxd4 {[%emt 0:00:03]} Nxd4 {[%emt 0:00:01]} 10. Nxd4 {[%emt 0:00:03]} a6 {[%emt 0:00:03]} 11. Re1 {[%emt 0:00:29]} Qc7 {[%emt 0:00:04]} 12. Bd3 {[%emt 0:00:23]} Bd6 {[%emt 0:00:26]} 13. h3 {[%emt 0:00:46]} O-O {[%emt 0:01:10]} 14. c3 {[%emt 0:01:26]} Bh2+ {[%emt 0:02:36]} 15. Kh1 {[%emt 0:00:09]} Bf4 {[%emt 0:00:02]} 16. Qf3 {[%emt 0:01:16]} Bxc1 {[%emt 0:00:02]} 17. Raxc1 {[%emt 0:00:02]} Bd7 {[%emt 0:00:09]} 18. Bb1 {[%emt 0:00:42]} Rad8 {[%emt 0:00:12]} 19. Qe2 {[%emt 0:00:44]} Bc8 {[%emt 0:01:00]} 20. Nf3 {[%emt 0:04:06]} b6 {[%emt 0:00:58]} 21. Rcd1 {[%emt 0:00:11]} Bb7 {[%emt 0:00:05]} 22. Rxd8 {[%emt 0:00:04]} Rxd8 {[%emt 0:00:02]} 23. Rd1 {[%emt 0:00:02]} Rxd1+ {[%emt 0:01:30]} 24. Qxd1 {[%emt 0:00:01]} Kf8 {[%emt 0:00:27]} 25. Kg1 {[%emt 0:00:14]} a5 {[%emt 0:00:09]} 26. Ne1 {[%emt 0:01:33]} Ke7 {[%emt 0:00:18]} 27. Nc2 {[%emt 0:00:20]} Qc5 {[%emt 0:02:57]} 28. Ne3 {[%emt 0:01:20]} g5 {[%emt 0:00:06]} 29. Bd3 {[%emt 0:00:31]} h6 {[%emt 0:01:58]} 30. Be2 {[%emt 0:00:16]} Nd5 {[%emt 0:00:01]} 31. Nc2 {[%emt 0:01:30]} Nf4 {[%emt 0:00:32]} 32. Bf3 {[%emt 0:00:53]} Bxf3 {[%emt 0:00:02]} 33. Qxf3 {[%emt 0:00:01]} Qd5 {[%emt 0:00:01]} 34. Qxd5 {[%emt 0:00:13]} exd5 {[%emt 0:00:26]} 35. Ne3 {[%emt 0:01:54]} Ke6 {[%emt 0:00:04]} 36. Kf1 {[%emt 0:00:04]} Nd3 {[%emt 0:00:07]} 37. Nd1 {[%emt 0:00:05]} f5 {[%emt 0:00:13]} 38. Ke2 {[%emt 0:00:15]} Nc5 {[%emt 0:00:55]} 39. b4 {[%emt 0:00:20]} Ne4 {[%emt 0:00:23]} 40. Kd3 {[%emt 0:00:36]} f4 {[%emt 0:00:58]} 41. bxa5 {[%emt 0:00:20]} bxa5 {[%emt 0:00:00]} 42. Kd4 {[%emt 0:00:09]} Nd2 {[%emt 0:00:46]} 43. Kc5 {[%emt 0:00:27]} h5 {[%emt 0:00:45]} 44. Kd4 {[%emt 0:00:17]} a4 {[%emt 0:01:00]} 45. Nb2 {[%emt 0:00:11]} a3 {[%emt 0:00:01]} 46. Nd3 {[%emt 0:00:10]} Nb3+ {[%emt 0:00:23]} 0-1

[Event "EIRCC 2019"]
[Site "Tallinn"]
[Date "2019.12.06"]
[Round "12.24"]
[White "Rocha, Sergio"]
[Black "Lobanov, Sergei"]
[Result "0-1"]
[ECO "A20"]
[WhiteElo "2249"]
[BlackElo "2483"]
[Annotator "ChessBase"]
[PlyCount "86"]
[EventDate "2019.12.05"]
[EventType "swiss"]
[EventCountry "EST"]
[SourceTitle "playchess.com"]
[Source "ChessBase"]
[SourceQuality "1"]
[TimeControl "900+10"]

1. c4 {[%emt 0:00:00]} e5 {[%emt 0:01:47]} 2. Nf3 {[%emt 0:00:00]} Nc6 {[%emt 0:00:01]} 3. b3 {[%emt 0:00:03]} e4 {[%emt 0:03:20]} 4. Ng1 {[%emt 0:00:02]} f5 {[%emt 0:00:10]} 5. Bb2 {[%emt 0:00:03]} Nf6 {[%emt 0:00:01]} 6. Nc3 {[%emt 0:00:09]} d5 {[%emt 0:00:17]} 7. cxd5 {[%emt 0:00:16]} Nb4 {[%emt 0:00:23]} 8. Nh3 {[%emt 0:00:20]} Nbxd5 {[%emt 0:00:10]} 9. Nxd5 {[%emt 0:00:20]} Nxd5 {[%emt 0:00:33]} 10. g3 {[%emt 0:00:07]} Be6 {[%emt 0:00:35]} 11. Nf4 {[%emt 0:00:13]} Nxf4 {[%emt 0:00:08]} 12. gxf4 {[%emt 0:00:02]} Qh4 {[%emt 0:00:31]} 13. e3 {[%emt 0:00:09]} O-O-O {[%emt 0:00:03]} 14. Qc2 {[%emt 0:00:07]} Bb4 {[%emt 0:00:32]} 15. O-O-O {[%emt 0:02:38]} Rd7 {[%emt 0:00:48]} 16. Bb5 {[%emt 0:01:24]} c6 {[%emt 0:00:21]} 17. Be5 {[%emt 0:01:21]} Bd6 {[%emt 0:01:00]} 18. d4 {[%emt 0:01:11]} exd3 {[%emt 0:02:12]} 19. Bxd3 {[%emt 0:00:02]} Bxe5 {[%emt 0:00:14]} 20. fxe5 {[%emt 0:00:02]} Rhd8 {[%emt 0:00:21]} 21. f4 {[%emt 0:01:21]} g6 {[%emt 0:00:09]} 22. Bc4 {[%emt 0:00:43]} Bxc4 {[%emt 0:00:16]} 23. bxc4 {[%emt 0:00:37]} Qh3 {[%emt 0:00:26]} 24. Qc3 {[%emt 0:00:41]} Qf3 {[%emt 0:00:04]} 25. Qb3 {[%emt 0:02:33]} Rxd1+ {[%emt 0:01:00]} 26. Rxd1 {[%emt 0:00:01]} Rxd1+ {[%emt 0:00:02]} 27. Qxd1 {[%emt 0:00:04]} Qxe3+ {[%emt 0:00:00]} 28. Kc2 {[%emt 0:00:11]} Qa3 {[%emt 0:00:13]} 29. Qd4 {[%emt 0:00:53]} Qxa2+ {[%emt 0:00:02]} 30. Kc1 {[%emt 0:00:13]} Qa3+ {[%emt 0:00:08]} 31. Kc2 {[%emt 0:00:01]} Qa4+ {[%emt 0:00:51]} 32. Kc1 {[%emt 0:00:12]} Qb4 {[%emt 0:01:44]} 33. e6 {[%emt 0:00:47]} Qe1+ {[%emt 0:00:01]} 34. Kc2 {[%emt 0:00:04]} Qxe6 {[%emt 0:00:02]} 35. Kb3 {[%emt 0:00:07]} b5 {[%emt 0:00:26]} 36. Qxa7 {[%emt 0:00:24]} Qxc4+ {[%emt 0:00:01]} 37. Kb2 {[%emt 0:00:01]} Qb4+ {[%emt 0:00:01]} 38. Kc1 {[%emt 0:00:01]} Qxf4+ {[%emt 0:00:02]} 39. Kc2 {[%emt 0:00:05]} Qxh2+ {[%emt 0:00:05]} 40. Kb3 {[%emt 0:00:03]} Qg3+ {[%emt 0:00:15]} 41. Kb4 {[%emt 0:00:03]} Qd6+ {[%emt 0:00:04]} 42. Kb3 {[%emt 0:00:02]} h5 {[%emt 0:00:03]} 43. Qh7 {[%emt 0:00:04]} f4 {[%emt 0:00:02]} 0-1

[Event "EIRCC 2019"]
[Site "Tallinn"]
[Date "2019.12.06"]
[Round "12.26"]
[White "Cerveny, Martin"]
[Black "Sanz Wawer, Daniel"]
[Result "0-1"]
[ECO "E11"]
[WhiteElo "2432"]
[BlackElo "2103"]
[Annotator "NA"]
[PlyCount "154"]
[EventDate "2019.12.05"]
[EventType "swiss"]
[EventCountry "EST"]
[SourceTitle "playchess.com"]
[Source "ChessBase"]
[SourceQuality "1"]
[TimeControl "900+10"]

1. d4 {[%emt 0:00:00]} Nf6 {[%emt 0:00:00]} 2. Nf3 {[%emt 0:00:00]} e6 {[%emt 0:00:00]} 3. c4 {[%emt 0:00:00]} Bb4+ {[%emt 0:00:00]} 4. Nbd2 {[%emt 0:00:00]} d5 {[%emt 0:00:16]} 5. a3 {[%emt 0:00:16]} Be7 {[%emt 0:00:44]} 6. b4 {[%emt 0:00:21]} O-O {[%emt 0:00:10]} 7. Bb2 {[%emt 0:00:02]} b6 {[%emt 0:00:06]} 8. e3 {[%emt 0:00:22]} Bb7 {[%emt 0:00:06]} 9. c5 {[%emt 0:00:14]} Ne4 {[%emt 0:00:27]} 10. Bd3 {[%emt 0:00:24]} f5 {[%emt 0:00:03]} 11. Rc1 {[%emt 0:01:10]} c6 {[%emt 0:00:34]} 12. Ne5 {[%emt 0:00:44]} Nxd2 {[%emt 0:01:19]} 13. Qxd2 {[%emt 0:00:02]} Nd7 {[%emt 0:00:17]} 14. Nxd7 {[%emt 0:01:53]} Qxd7 {[%emt 0:00:02]} 15. a4 {[%emt 0:00:02]} bxc5 {[%emt 0:01:01]} 16. bxc5 {[%emt 0:00:28]} Qc8 {[%emt 0:01:04]} 17. Qe2 {[%emt 0:00:47]} Qc7 {[%emt 0:01:12]} 18. Bc3 {[%emt 0:00:18]} Bf6 {[%emt 0:00:16]} 19. f4 {[%emt 0:00:41]} Rab8 {[%emt 0:00:14]} 20. h4 {[%emt 0:01:38]} Bc8 {[%emt 0:00:13]} 21. g4 {[%emt 0:00:02]} fxg4 {[%emt 0:00:51]} 22. h5 {[%emt 0:00:19]} Kh8 {[%emt 0:00:56]} 23. Qc2 {[%emt 0:00:24]} h6 {[%emt 0:00:27]} 24. Ke2 {[%emt 0:00:25]} Bd7 {[%emt 0:00:51]} 25. a5 {[%emt 0:00:37]} Qb7 {[%emt 0:00:54]} 26. Rb1 {[%emt 0:00:23]} Qc7 {[%emt 0:00:11]} 27. a6 {[%emt 0:00:05]} Rxb1 {[%emt 0:00:32]} 28. Qxb1 {[%emt 0:00:20]} Rb8 {[%emt 0:00:20]} 29. Qd1 {[%emt 0:00:06]} Be8 {[%emt 0:00:46]} 30. Kf2 {[%emt 0:00:21]} Qf7 {[%emt 0:00:40]} 31. Kg2 {[%emt 0:00:11]} Kg8 {[%emt 0:00:35]} 32. Bc2 {[%emt 0:00:44]} Bd7 {[%emt 0:01:23]} 33. Qd3 {[%emt 0:00:17]} Kf8 {[%emt 0:00:11]} 34. Qe2 {[%emt 0:00:49]} Bc8 {[%emt 0:00:19]} 35. Bd3 {[%emt 0:00:23]} Rb3 {[%emt 0:00:33]} 36. Qc2 {[%emt 0:00:11]} Rb8 {[%emt 0:00:09]} 37. Ba5 {[%emt 0:00:04]} Qe8 {[%emt 0:00:57]} 38. Bc7 {[%emt 0:01:08]} Ra8 {[%emt 0:00:00]} 39. Bd6+ {[%emt 0:00:24]} Be7 {[%emt 0:00:13]} 40. Be5 {[%emt 0:00:19]} Bf6 {[%emt 0:00:25]} 41. Qe2 {[%emt 0:00:09]} Bxe5 {[%emt 0:00:48]} 42. fxe5 {[%emt 0:00:02]} Rb8 {[%emt 0:00:38]} 43. Rf1+ {[%emt 0:00:17]} Kg8 {[%emt 0:00:05]} 44. Qxg4 {[%emt 0:00:18]} Qe7 {[%emt 0:00:18]} 45. Qg6 {[%emt 0:00:28]} Qg5+ {[%emt 0:00:04]} 46. Qxg5 {[%emt 0:00:01]} hxg5 {[%emt 0:00:02]} 47. Bg6 {[%emt 0:00:15]} Bxa6 {[%emt 0:00:08]} 48. Rf7 {[%emt 0:00:03]} Rb7 {[%emt 0:00:34]} 49. Rf2 {[%emt 0:00:02]} Bb5 {[%emt 0:00:26]} 50. Kg3 {[%emt 0:00:05]} a5 {[%emt 0:00:02]} 51. Kg4 {[%emt 0:00:03]} a4 {[%emt 0:00:06]} 52. Kxg5 {[%emt 0:00:04]} a3 {[%emt 0:00:28]} 53. Ra2 {[%emt 0:01:17]} Ra7 {[%emt 0:00:02]} 54. h6 {[%emt 0:00:01]} Bc4 {[%emt 0:00:44]} 55. h7+ {[%emt 0:01:06]} Kh8 {[%emt 0:00:01]} 56. Ra1 {[%emt 0:00:04]} a2 {[%emt 0:00:05]} 57. e4 {[%emt 0:00:23]} Rb7 {[%emt 0:00:21]} 58. exd5 {[%emt 0:00:02]} Bxd5 {[%emt 0:00:07]} 59. Rf1 {[%emt 0:00:38]} Rb8 {[%emt 0:00:01]} 60. Bd3 {[%emt 0:00:03]} Ra8 {[%emt 0:00:07]} 61. Ra1 {[%emt 0:00:03]} Ra3 {[%emt 0:00:19]} 62. Bg6 {[%emt 0:00:15]} Rg3+ {[%emt 0:00:10]} 63. Kh5 {[%emt 0:00:09]} Bf3+ {[%emt 0:00:01]} 64. Kh4 {[%emt 0:00:01]} Rxg6 {[%emt 0:00:07]} 65. Rxa2 Kxh7 {[%emt 0:00:04]} 66. Rf2 {[%emt 0:00:22]} Bd5 {[%emt 0:00:15]} 67. Rf4 {[%emt 0:00:13]} Rg1 {[%emt 0:00:05]} 68. Kh3 {[%emt 0:00:02]} Kg6 {[%emt 0:00:14]} 69. Kh4 {[%emt 0:00:03]} Re1 {[%emt 0:00:07]} 70. Rg4+ {[%emt 0:00:05]} Kh7 {[%emt 0:00:14]} 71. Kg5 {[%emt 0:00:04]} Re4 {[%emt 0:00:07]} 72. Rg3 {[%emt 0:01:13]} Rxd4 {[%emt 0:00:08]} 73. Rf3 {[%emt 0:00:01]} Re4 {[%emt 0:00:20]} 74. Rh3+ {[%emt 0:00:02]} Kg8 {[%emt 0:00:02]} 75. Kg6 {[%emt 0:00:02]} Rg4+ {[%emt 0:00:12]} 76. Kh5 {[%emt 0:00:01]} Rg1 {[%emt 0:00:08]} 77. Kh4 {[%emt 0:00:15]} Rh1 {[%emt 0:00:10]} 0-1

[Event "EIRCC 2019"]
[Site "Tallinn"]
[Date "2019.12.06"]
[Round "12.30"]
[White "Ladva, Ottomar"]
[Black "Dubrovin, Robert"]
[Result "1-0"]
[ECO "A05"]
[WhiteElo "2446"]
[BlackElo "2235"]
[Annotator "NA"]
[PlyCount "75"]
[EventDate "2019.12.05"]
[EventType "swiss"]
[EventCountry "EST"]
[SourceTitle "playchess.com"]
[Source "ChessBase"]
[SourceQuality "1"]
[TimeControl "900+10"]

1. Nf3 {[%emt 0:00:00]} Nf6 {[%emt 0:00:01]} 2. g3 {[%emt 0:00:00]} b5 {[%emt 0:00:06]} 3. Bg2 {[%emt 0:00:05]} Bb7 {[%emt 0:00:01]} 4. Na3 {[%emt 0:00:27]} a6 {[%emt 0:00:01]} 5. c4 {[%emt 0:00:03]} e5 {[%emt 0:00:53]} 6. cxb5 {[%emt 0:00:22]} Bxa3 {[%emt 0:00:39]} 7. bxa3 {[%emt 0:00:01]} axb5 {[%emt 0:00:01]} 8. Qb3 {[%emt 0:01:17]} O-O {[%emt 0:02:15]} 9. Qxb5 {[%emt 0:00:17]} Ba6 {[%emt 0:00:13]} 10. Qb1 {[%emt 0:00:39]} e4 {[%emt 0:00:11]} 11. Nd4 {[%emt 0:00:09]} c5 {[%emt 0:00:22]} 12. Nb5 {[%emt 0:00:59]} Nc6 {[%emt 0:01:35]} 13. a4 {[%emt 0:01:27]} Rb8 {[%emt 0:00:28]} 14. Bb2 {[%emt 0:00:28]} Bxb5 {[%emt 0:01:02]} 15. axb5 {[%emt 0:01:10]} Rxb5 {[%emt 0:00:03]} 16. a4 {[%emt 0:01:04]} Rb8 {[%emt 0:02:03]} 17. Qc1 {[%emt 0:01:11]} Nd4 {[%emt 0:00:51]} 18. Bxd4 {[%emt 0:00:04]} cxd4 {[%emt 0:00:00]} 19. a5 {[%emt 0:01:56]} Qe7 {[%emt 0:00:47]} 20. O-O {[%emt 0:00:55]} Rfc8 {[%emt 0:00:06]} 21. Qa3 {[%emt 0:00:27]} Qe6 {[%emt 0:01:20]} 22. a6 {[%emt 0:01:54]} d5 {[%emt 0:00:27]} 23. d3 {[%emt 0:00:22]} h5 {[%emt 0:00:06]} 24. Qa4 {[%emt 0:00:46]} Qb6 {[%emt 0:00:26]} 25. a7 {[%emt 0:00:28]} Ra8 {[%emt 0:00:22]} 26. Rfb1 {[%emt 0:00:03]} Qc5 {[%emt 0:00:15]} 27. Rb7 {[%emt 0:00:47]} h4 {[%emt 0:01:19]} 28. Rab1 {[%emt 0:00:42]} hxg3 {[%emt 0:02:15]} 29. hxg3 {[%emt 0:00:02]} e3 {[%emt 0:00:25]} 30. fxe3 {[%emt 0:00:15]} dxe3 {[%emt 0:00:12]} 31. Rb8 Kh7 32. Qh4+ Kg6 33. Bh3 {[%emt 0:01:37]} Re8 {[%emt 0:01:33]} 34. Rf1 {[%emt 0:00:12]} d4 {[%emt 0:00:02]} 35. Bf5+ {[%emt 0:00:11]} Qxf5 {[%emt 0:00:01]} 36. Rxf5 {[%emt 0:00:01]} Kxf5 {[%emt 0:00:05]} 37. Rxa8 {[%emt 0:00:15]} Rxa8 {[%emt 0:00:01]} 38. Qxd4 {[%emt 0:00:01]} 1-0

[Event "EIRCC 2019"]
[Site "Tallinn"]
[Date "2019.12.06"]
[Round "12.31"]
[White "Schnabel, Ralf"]
[Black "Kourousis, Epaminondas"]
[Result "1/2-1/2"]
[ECO "B34"]
[WhiteElo "2220"]
[BlackElo "2392"]
[Annotator "NA"]
[PlyCount "153"]
[EventDate "2019.12.05"]
[EventType "swiss"]
[EventCountry "EST"]
[SourceTitle "playchess.com"]
[Source "ChessBase"]
[SourceQuality "1"]
[TimeControl "900+10"]

1. e4 {[%emt 0:00:00]} c5 {[%emt 0:00:00]} 2. Nf3 {[%emt 0:00:00]} Nc6 {[%emt 0:00:00]} 3. d4 {[%emt 0:00:00]} cxd4 {[%emt 0:00:00]} 4. Nxd4 {[%emt 0:00:02]} g6 {[%emt 0:00:06]} 5. Nc3 {[%emt 0:00:29]} Bg7 {[%emt 0:00:02]} 6. Nb3 {[%emt 0:00:02]} Nf6 {[%emt 0:00:03]} 7. Be2 {[%emt 0:00:04]} O-O {[%emt 0:00:12]} 8. Bg5 {[%emt 0:00:02]} d6 {[%emt 0:00:36]} 9. O-O {[%emt 0:00:05]} Be6 {[%emt 0:01:58]} 10. Kh1 {[%emt 0:00:04]} h6 {[%emt 0:01:18]} 11. Bh4 {[%emt 0:00:02]} g5 {[%emt 0:00:22]} 12. Bg3 {[%emt 0:00:03]} d5 {[%emt 0:00:33]} 13. Nc5 {[%emt 0:01:26]} d4 {[%emt 0:00:46]} 14. Nb5 {[%emt 0:01:32]} Rc8 {[%emt 0:01:57]} 15. c3 {[%emt 0:02:16]} dxc3 {[%emt 0:01:14]} 16. Nxc3 {[%emt 0:00:04]} Nd4 {[%emt 0:00:53]} 17. Nxe6 {[%emt 0:00:41]} Nxe6 {[%emt 0:00:22]} 18. Qxd8 {[%emt 0:03:30]} Rfxd8 {[%emt 0:00:03]} 19. Rfd1 {[%emt 0:00:01]} Nd4 {[%emt 0:01:17]} 20. Bf1 {[%emt 0:01:16]} Nh5 {[%emt 0:01:48]} 21. Rd2 {[%emt 0:00:02]} Nxg3+ {[%emt 0:00:21]} 22. hxg3 {[%emt 0:00:01]} Nc6 {[%emt 0:00:23]} 23. Rxd8+ {[%emt 0:01:17]} Rxd8 {[%emt 0:00:05]} 24. Rd1 {[%emt 0:00:04]} Bxc3 {[%emt 0:00:27]} 25. Rxd8+ {[%emt 0:00:01]} Nxd8 {[%emt 0:00:01]} 26. bxc3 {[%emt 0:00:02]} Ne6 {[%emt 0:00:56]} 27. Bd3 {[%emt 0:00:32]} Kg7 {[%emt 0:00:17]} 28. Kg1 {[%emt 0:00:02]} Nc5 {[%emt 0:00:06]} 29. Bc2 {[%emt 0:00:01]} Kf6 {[%emt 0:00:03]} 30. f3 {[%emt 0:00:19]} e5 {[%emt 0:01:31]} 31. Kf2 {[%emt 0:00:04]} h5 {[%emt 0:00:05]} 32. Ke3 {[%emt 0:00:07]} h4 {[%emt 0:00:11]} 33. Kf2 {[%emt 0:01:51]} a5 {[%emt 0:00:15]} 34. g4 {[%emt 0:01:48]} Ke7 {[%emt 0:00:23]} 35. Ke3 {[%emt 0:00:47]} f6 {[%emt 0:00:08]} 36. Kf2 {[%emt 0:00:05]} Kd6 {[%emt 0:00:08]} 37. Ke3 {[%emt 0:00:02]} Ne6 {[%emt 0:00:12]} 38. Bd3 {[%emt 0:00:01]} Kc5 {[%emt 0:00:16]} 39. Kd2 {[%emt 0:00:11]} b5 {[%emt 0:00:23]} 40. a3 {[%emt 0:00:10]} Nd8 {[%emt 0:00:31]} 41. Kc2 {[%emt 0:00:14]} Nb7 {[%emt 0:00:03]} 42. Kb3 {[%emt 0:01:16]} Nd6 {[%emt 0:00:59]} 43. Be2 {[%emt 0:00:12]} Nc8 {[%emt 0:00:25]} 44. Bd3 {[%emt 0:00:07]} Ne7 {[%emt 0:00:03]} 45. Be2 {[%emt 0:00:09]} Nc6 {[%emt 0:00:22]} 46. Bf1 {[%emt 0:00:13]} Ne7 {[%emt 0:00:20]} 47. Be2 {[%emt 0:00:04]} Ng6 {[%emt 0:00:01]} 48. Bd3 {[%emt 0:00:03]} Nf4 {[%emt 0:00:13]} 49. Bf1 {[%emt 0:00:01]} Ne6 {[%emt 0:00:06]} 50. Be2 {[%emt 0:00:04]} Kb6 {[%emt 0:00:04]} 51. Bf1 {[%emt 0:00:05]} Nc5+ {[%emt 0:00:00]} 52. Kc2 {[%emt 0:00:02]} a4 {[%emt 0:00:21]} 53. Be2 {[%emt 0:00:19]} Nb3 {[%emt 0:00:02]} 54. Bf1 {[%emt 0:00:03]} Kc5 {[%emt 0:00:01]} 55. Be2 {[%emt 0:00:01]} Na5 {[%emt 0:00:04]} 56. Kb2 {[%emt 0:00:08]} Nb7 {[%emt 0:00:01]} 57. Kc2 {[%emt 0:00:02]} Nd6 {[%emt 0:00:04]} 58. Kd2 {[%emt 0:00:03]} Nf7 {[%emt 0:00:19]} 59. Kc2 {[%emt 0:00:01]} Nd8 {[%emt 0:00:09]} 60. Bf1 {[%emt 0:00:03]} Ne6 {[%emt 0:00:01]} 61. Be2 {[%emt 0:00:03]} Nf4 {[%emt 0:00:05]} 62. Bf1 {[%emt 0:00:01]} Kc6 {[%emt 0:00:12]} 63. Kd2 {[%emt 0:00:00]} Kb6 {[%emt 0:00:01]} 64. Kc1 {[%emt 0:00:07]} Ng6 {[%emt 0:00:10]} 65. Kc2 {[%emt 0:00:16]} Kc5 {[%emt 0:00:39]} 66. Be2 {[%emt 0:00:04]} Ne7 {[%emt 0:00:16]} 67. Bd3 {[%emt 0:00:08]} Nc8 {[%emt 0:00:02]} 68. Bf1 {[%emt 0:00:09]} Nd6 {[%emt 0:00:03]} 69. Kb2 {[%emt 0:00:06]} Ne8 {[%emt 0:00:34]} 70. Kc2 {[%emt 0:00:03]} Nd6 {[%emt 0:00:20]} 71. Kb2 {[%emt 0:00:02]} Kc6 {[%emt 0:00:01]} 72. Be2 {[%emt 0:00:20]} Kc5 {[%emt 0:00:03]} 73. Bf1 {[%emt 0:00:02]} Nb7 {[%emt 0:00:07]} 74. Be2 {[%emt 0:00:08]} Na5 {[%emt 0:00:07]} 75. Bf1 {[%emt 0:00:11]} Nb3 {[%emt 0:00:06]} 76. Kc2 {[%emt 0:00:04]} Na5 {[%emt 0:00:10]} 77. Kb2 {[%emt 0:00:02]} 1/2-1/2

[Event "EIRCC 2019"]
[Site "Tallinn"]
[Date "2019.12.06"]
[Round "12.32"]
[White "Opryshko, Stanislav"]
[Black "Krutti, Valer"]
[Result "1-0"]
[ECO "A48"]
[WhiteElo "2208"]
[BlackElo "2370"]
[Annotator "NA RC"]
[PlyCount "31"]
[EventDate "2019.12.05"]
[EventType "swiss"]
[EventCountry "EST"]
[SourceTitle "playchess.com"]
[Source "ChessBase"]
[SourceQuality "1"]
[TimeControl "900+10"]

1. d4 {[%emt 0:00:00]} Nf6 {[%emt 0:00:00]} 2. Nf3 {[%emt 0:00:00]} g6 {[%emt 0:00:00]} 3. c4 {[%emt 0:00:04]} c6 {[%emt 0:00:00]} 4. Nc3 {[%emt 0:00:14]} d5 {[%emt 0:00:02]} 5. cxd5 {[%emt 0:00:20]} cxd5 {[%emt 0:00:02]} 6. Bf4 {[%emt 0:00:04]} Nc6 {[%emt 0:00:02]} 7. e3 {[%emt 0:00:01]} Bg7 {[%emt 0:00:02]} 8. h3 {[%emt 0:00:04]} O-O {[%emt 0:00:03]} 9. Ne5 {[%emt 0:00:07]} Qb6 {[%emt 0:00:31]} 10. Qb3 {[%emt 0:00:26]} e6 {[%emt 0:00:08]} 11. Nxc6 {[%emt 0:00:23]} bxc6 {[%emt 0:00:03]} 12. Bd6 {[%emt 0:01:31]} Re8 {[%emt 0:00:04]} 13. Be2 {[%emt 0:01:07]} Ba6 {[%emt 0:01:35]} 14. Bc5 {[%emt 0:01:24]} Qa5 {[%emt 0:00:03]} 15. Bb4 {[%emt 0:01:35]} Qb6 {[%emt 0:00:04]} 16. Na4 {[%emt 0:00:05]} 1-0